[Event "Early-Titled-Tuesday-Blitz-October-03-2023"]
[Site "Chess.com"]
[Date "2023.10.03"]
[Round "4"]
[White "Rap_woyska"]
[Black "GianmarcoVaR"]
[Result "1/2-1/2"]
[WhiteElo "2492"]
[BlackElo "2649"]
[TimeControl "180+1"]
[EndTime "8:40:31 PDT"]
[Termination "Game drawn by repetition"]

1. c4 {[%clk 0:03:00]} 1... e6 {[%clk 0:02:57.6]} 2. Nf3 {[%clk 0:02:58.7]} 2...
d5 {[%clk 0:02:58.5]} 3. g3 {[%clk 0:02:59.5]} 3... Nf6 {[%clk 0:02:54.8]} 4.
Bg2 {[%clk 0:02:58.9]} 4... Be7 {[%clk 0:02:46.1]} 5. O-O {[%clk 0:02:58.8]}
5... O-O {[%clk 0:02:46.5]} 6. d4 {[%clk 0:02:58.6]} 6... c6 {[%clk 0:02:46]} 7.
Nbd2 {[%clk 0:02:57.4]} 7... b6 {[%clk 0:02:44.6]} 8. Qc2 {[%clk 0:02:57.5]}
8... Nbd7 {[%clk 0:02:42.9]} 9. e4 {[%clk 0:02:52.6]} 9... dxc4 {[%clk 0:02:43]}
10. Nxc4 {[%clk 0:02:50]} 10... Bb7 {[%clk 0:02:43.4]} 11. Rd1 {[%clk 0:02:49]}
11... c5 {[%clk 0:02:39.9]} 12. d5 {[%clk 0:01:46.4]} 12... exd5 {[%clk
0:02:38.4]} 13. exd5 {[%clk 0:01:47.3]} 13... Bxd5 {[%clk 0:02:17.8]} 14. Bf4
{[%clk 0:01:11.6]} 14... Qc8 {[%clk 0:02:05.4]} 15. Rxd5 {[%clk 0:00:47.3]}
15... Nxd5 {[%clk 0:02:04.5]} 16. Ng5 {[%clk 0:00:47.8]} 16... Bxg5 {[%clk
0:02:03.5]} 17. Bxg5 {[%clk 0:00:47.4]} 17... N7f6 {[%clk 0:01:50.8]} 18. Rd1
{[%clk 0:00:32.5]} 18... Rd8 {[%clk 0:01:47.7]} 19. Bxf6 {[%clk 0:00:25.3]}
19... Nxf6 {[%clk 0:01:47.7]} 20. Rxd8+ {[%clk 0:00:25.1]} 20... Qxd8 {[%clk
0:01:47.7]} 21. Bxa8 {[%clk 0:00:25.5]} 21... Qxa8 {[%clk 0:01:48.2]} 22. Qf5
{[%clk 0:00:25]} 22... h6 {[%clk 0:01:10.1]} 23. Nd6 {[%clk 0:00:22.1]} 23...
Qd8 {[%clk 0:00:45.1]} 24. Qe5 {[%clk 0:00:22.2]} 24... Qd7 {[%clk 0:00:38.5]}
25. h4 {[%clk 0:00:21.3]} 25... Qh3 {[%clk 0:00:29.5]} 26. Qe7 {[%clk
0:00:12.6]} 26... Qd7 {[%clk 0:00:16.3]} 27. Qe5 {[%clk 0:00:11.6]} 27... Nh7
{[%clk 0:00:10.1]} 28. a4 {[%clk 0:00:08.4]} 28... Nf8 {[%clk 0:00:09.9]} 29. a5
{[%clk 0:00:08.4]} 29... Ne6 {[%clk 0:00:10.3]} 30. axb6 {[%clk 0:00:08.6]}
30... axb6 {[%clk 0:00:10.3]} 31. Nc4 {[%clk 0:00:09.5]} 31... Qd1+ {[%clk
0:00:05.7]} 32. Kg2 {[%clk 0:00:10.2]} 32... Qd8 {[%clk 0:00:05.4]} 33. b3
{[%clk 0:00:08.7]} 33... b5 {[%clk 0:00:04.4]} 34. Ne3 {[%clk 0:00:09.2]} 34...
Qa8+ {[%clk 0:00:03.2]} 35. Kg1 {[%clk 0:00:09.8]} 35... Qc6 {[%clk 0:00:02.8]}
36. h5 {[%clk 0:00:09.7]} 36... c4 {[%clk 0:00:02.3]} 37. bxc4 {[%clk
0:00:10.6]} 37... bxc4 {[%clk 0:00:02.9]} 38. Qc3 {[%clk 0:00:11.5]} 38... Qc5
{[%clk 0:00:02.9]} 39. g4 {[%clk 0:00:10.2]} 39... Qg5 {[%clk 0:00:01.7]} 40.
Qxc4 {[%clk 0:00:10.4]} 40... Nf4 {[%clk 0:00:01.9]} 41. Qe4 {[%clk 0:00:10.4]}
41... Ne6 {[%clk 0:00:02.1]} 42. Kg2 {[%clk 0:00:10.7]} 42... Nf4+ {[%clk
0:00:02.2]} 43. Kf3 {[%clk 0:00:11.3]} 43... Ne6 {[%clk 0:00:02.5]} 44. Qa8+
{[%clk 0:00:12]} 44... Kh7 {[%clk 0:00:02.4]} 45. Qe4+ {[%clk 0:00:12.9]} 45...
Kg8 {[%clk 0:00:03.1]} 46. Nf5 {[%clk 0:00:13]} 46... Qd8 {[%clk 0:00:02.6]} 47.
Kg2 {[%clk 0:00:12.6]} 47... Qf8 {[%clk 0:00:02.2]} 48. Ng3 {[%clk 0:00:13.3]}
48... Qd8 {[%clk 0:00:02.4]} 49. Nf5 {[%clk 0:00:13.7]} 49... Qg5 {[%clk
0:00:02.6]} 50. Ne3 {[%clk 0:00:14.2]} 50... Nf4+ {[%clk 0:00:02.4]} 51. Kf3
{[%clk 0:00:14.8]} 51... Ne6 {[%clk 0:00:02.9]} 1/2-1/2

[Event "Early-Titled-Tuesday-Blitz-October-03-2023"]
[Site "Chess.com"]
[Date "2023.10.03"]
[Round "4"]
[White "Rutricks"]
[Black "Tssunami"]
[Result "1-0"]
[WhiteElo "2668"]
[BlackElo "2394"]
[TimeControl "180+1"]
[EndTime "8:40:33 PDT"]
[Termination "Rutricks won on time"]

1. Nf3 {[%clk 0:03:00.9]} 1... d5 {[%clk 0:02:57.2]} 2. c4 {[%clk 0:02:54.1]}
2... c6 {[%clk 0:02:56.4]} 3. b4 {[%clk 0:02:53.4]} 3... Nf6 {[%clk 0:02:55.7]}
4. Bb2 {[%clk 0:02:50.9]} 4... g6 {[%clk 0:02:51.8]} 5. cxd5 {[%clk 0:02:50.4]}
5... cxd5 {[%clk 0:02:51.4]} 6. g3 {[%clk 0:02:41.5]} 6... Bg7 {[%clk
0:02:50.9]} 7. Bg2 {[%clk 0:02:41.9]} 7... O-O {[%clk 0:02:51]} 8. O-O {[%clk
0:02:41.9]} 8... a5 {[%clk 0:02:49.5]} 9. b5 {[%clk 0:02:40.7]} 9... Nbd7 {[%clk
0:02:48.9]} 10. a4 {[%clk 0:02:39.4]} 10... Re8 {[%clk 0:02:47.8]} 11. d4 {[%clk
0:02:33.8]} 11... Ne4 {[%clk 0:02:44.6]} 12. Qb3 {[%clk 0:02:31.3]} 12... Nb6
{[%clk 0:02:43.7]} 13. Na3 {[%clk 0:02:27.6]} 13... Bg4 {[%clk 0:02:41.1]} 14.
Rfc1 {[%clk 0:02:23.7]} 14... Rc8 {[%clk 0:02:34.4]} 15. h3 {[%clk 0:02:22.2]}
15... Bxf3 {[%clk 0:02:31.7]} 16. Bxf3 {[%clk 0:02:10.6]} 16... Rxc1+ {[%clk
0:02:27.4]} 17. Rxc1 {[%clk 0:02:09.4]} 17... Nd2 {[%clk 0:02:27.8]} 18. Qd1
{[%clk 0:02:09.4]} 18... Ndc4 {[%clk 0:02:20.6]} 19. Nxc4 {[%clk 0:02:03]} 19...
Nxc4 {[%clk 0:02:21.5]} 20. Bc3 {[%clk 0:02:03.8]} 20... e6 {[%clk 0:02:18.5]}
21. e4 {[%clk 0:01:59.8]} 21... Qd7 {[%clk 0:02:12.4]} 22. Kg2 {[%clk
0:01:58.2]} 22... Rc8 {[%clk 0:02:12.4]} 23. Qe2 {[%clk 0:01:45.8]} 23... b6
{[%clk 0:02:10.2]} 24. exd5 {[%clk 0:01:24]} 24... exd5 {[%clk 0:02:10.1]} 25.
Re1 {[%clk 0:01:24.6]} 25... Bf8 {[%clk 0:01:49.8]} 26. h4 {[%clk 0:01:00.8]}
26... Bb4 {[%clk 0:01:48.3]} 27. Bxb4 {[%clk 0:00:53.6]} 27... axb4 {[%clk
0:01:49.2]} 28. Rb1 {[%clk 0:00:54.4]} 28... Qd6 {[%clk 0:01:45]} 29. Qe1 {[%clk
0:00:54.4]} 29... Qf6 {[%clk 0:01:09.8]} 30. Bxd5 {[%clk 0:00:19.4]} 30... Qxd4
{[%clk 0:01:05.8]} 31. Bc6 {[%clk 0:00:19.2]} 31... Ne5 {[%clk 0:00:58.5]} 32.
Rxb4 {[%clk 0:00:18.8]} 32... Qd6 {[%clk 0:00:53.4]} 33. Re4 {[%clk 0:00:18.1]}
33... Nxc6 {[%clk 0:00:52.5]} 34. Re8+ {[%clk 0:00:18.8]} 34... Kg7 {[%clk
0:00:47]} 35. Rxc8 {[%clk 0:00:18.5]} 35... Qd5+ {[%clk 0:00:46.6]} 36. Kg1
{[%clk 0:00:18.7]} 36... Ne5 {[%clk 0:00:41.6]} 37. Rc3 {[%clk 0:00:14.8]} 37...
f6 {[%clk 0:00:26.2]} 38. Qe2 {[%clk 0:00:13.9]} 38... Qd4 {[%clk 0:00:24.3]}
39. Rc7+ {[%clk 0:00:13.6]} 39... Kh8 {[%clk 0:00:19.2]} 40. Rc8+ {[%clk
0:00:07.3]} 40... Kg7 {[%clk 0:00:18.9]} 41. Rc7+ {[%clk 0:00:07.8]} 41... Kh8
{[%clk 0:00:19.3]} 42. Rc1 {[%clk 0:00:08.7]} 42... Kg7 {[%clk 0:00:16.1]} 43.
Kg2 {[%clk 0:00:06.9]} 43... Qd5+ {[%clk 0:00:15.9]} 44. f3 {[%clk 0:00:06.2]}
44... h5 {[%clk 0:00:12.8]} 45. Rc7+ {[%clk 0:00:05.2]} 45... Kg8 {[%clk
0:00:10.2]} 46. Rc3 {[%clk 0:00:05.6]} 46... Kg7 {[%clk 0:00:09.2]} 47. Rc2
{[%clk 0:00:04.7]} 47... Qd6 {[%clk 0:00:04.4]} 48. Qe4 {[%clk 0:00:03.9]} 48...
Qd7 {[%clk 0:00:03.3]} 49. Re2 {[%clk 0:00:02.8]} 1-0

[Event "Early-Titled-Tuesday-Blitz-October-03-2023"]
[Site "Chess.com"]
[Date "2023.10.03"]
[Round "4"]
[White "AlexandraSamaganova"]
[Black "Road2GM3000"]
[Result "1-0"]
[WhiteElo "2226"]
[BlackElo "2349"]
[TimeControl "180+1"]
[EndTime "8:40:33 PDT"]
[Termination "AlexandraSamaganova won by resignation"]

1. c4 {[%clk 0:03:00.9]} 1... c5 {[%clk 0:02:58.6]} 2. Nc3 {[%clk 0:03:00.6]}
2... d6 {[%clk 0:02:58.9]} 3. g3 {[%clk 0:03:00.2]} 3... g6 {[%clk 0:02:59.5]}
4. Bg2 {[%clk 0:03:00.6]} 4... Bg7 {[%clk 0:03:00.3]} 5. e3 {[%clk 0:03:00.4]}
5... e5 {[%clk 0:03:01.1]} 6. Nge2 {[%clk 0:03:00.8]} 6... Ne7 {[%clk
0:03:01.9]} 7. O-O {[%clk 0:03:00.8]} 7... O-O {[%clk 0:03:02.7]} 8. h3 {[%clk
0:03:00.9]} 8... Nbc6 {[%clk 0:03:03.4]} 9. d3 {[%clk 0:03:00.8]} 9... f5 {[%clk
0:03:04]} 10. a3 {[%clk 0:02:59]} 10... Be6 {[%clk 0:03:04.7]} 11. Nd5 {[%clk
0:02:58.1]} 11... Qd7 {[%clk 0:03:05]} 12. Kh2 {[%clk 0:02:56.9]} 12... e4
{[%clk 0:02:44.8]} 13. Nec3 {[%clk 0:02:40]} 13... exd3 {[%clk 0:02:36]} 14.
Qxd3 {[%clk 0:02:30.8]} 14... Ne5 {[%clk 0:02:36]} 15. Qe2 {[%clk 0:02:30.8]}
15... Rae8 {[%clk 0:02:20.5]} 16. Rd1 {[%clk 0:02:28.4]} 16... N7c6 {[%clk
0:02:10.3]} 17. Bd2 {[%clk 0:02:17.2]} 17... Kh8 {[%clk 0:02:07.2]} 18. Rac1
{[%clk 0:02:01.7]} 18... f4 {[%clk 0:01:57.8]} 19. gxf4 {[%clk 0:01:53.9]} 19...
Nf7 {[%clk 0:01:40.1]} 20. b4 {[%clk 0:01:42]} 20... Nh6 {[%clk 0:01:32.8]} 21.
Qf1 {[%clk 0:01:24.2]} 21... Qd8 {[%clk 0:01:27.7]} 22. Bf3 {[%clk 0:01:02.9]}
22... Qh4 {[%clk 0:01:17.5]} 23. Qg2 {[%clk 0:00:58.3]} 23... Ne7 {[%clk
0:00:43.7]} 24. Nc7 {[%clk 0:00:53.6]} 24... Nef5 {[%clk 0:00:40.8]} 25. Nxe8
{[%clk 0:00:45]} 25... Rxe8 {[%clk 0:00:41.7]} 26. Nd5 {[%clk 0:00:41.2]} 26...
Rf8 {[%clk 0:00:34.2]} 27. Bc3 {[%clk 0:00:37.7]} 27... Bxc3 {[%clk 0:00:32.6]}
28. Rxc3 {[%clk 0:00:37.1]} 28... Nf7 {[%clk 0:00:32.5]} 29. Nc7 {[%clk
0:00:26.1]} 29... Bc8 {[%clk 0:00:27.1]} 30. Bd5 {[%clk 0:00:20]} 30... Qh6
{[%clk 0:00:20.9]} 31. Be6 {[%clk 0:00:07.7]} 31... Nh4 {[%clk 0:00:16.8]} 32.
Qg3 {[%clk 0:00:05.5]} 32... Nf5 {[%clk 0:00:14.2]} 33. Bxf5 {[%clk 0:00:03.3]}
33... Bxf5 {[%clk 0:00:13.7]} 34. Nd5 {[%clk 0:00:03.5]} 34... Nd8 {[%clk
0:00:10.5]} 35. f3 {[%clk 0:00:02.8]} 35... Bc8 {[%clk 0:00:08.3]} 36. e4 {[%clk
0:00:03.2]} 36... Ne6 {[%clk 0:00:08.2]} 37. f5 {[%clk 0:00:02.1]} 37... Ng5
{[%clk 0:00:07.8]} 38. f4 {[%clk 0:00:01.8]} 38... Nf7 {[%clk 0:00:07.5]} 39.
Qe3 {[%clk 0:00:01.9]} 39... gxf5 {[%clk 0:00:07.2]} 40. exf5 {[%clk 0:00:02.2]}
40... Bxf5 {[%clk 0:00:08]} 41. Rg1 {[%clk 0:00:01.9]} 41... Nd8 {[%clk
0:00:07.5]} 42. Rb3 {[%clk 0:00:02.4]} 42... Ne6 {[%clk 0:00:07.8]} 43. Qc3+
{[%clk 0:00:02.8]} 43... Nd4 {[%clk 0:00:06.3]} 44. Rb2 {[%clk 0:00:03.4]} 44...
Be6 {[%clk 0:00:04.8]} 45. Rbg2 {[%clk 0:00:03.4]} 45... Bxd5 {[%clk 0:00:05.2]}
46. cxd5 {[%clk 0:00:04.3]} 46... Qf6 {[%clk 0:00:05.3]} 47. bxc5 {[%clk
0:00:04.6]} 47... Qxf4+ {[%clk 0:00:05.8]} 48. Qg3 {[%clk 0:00:04.4]} 48...
Qxg3+ {[%clk 0:00:05.9]} 49. Rxg3 {[%clk 0:00:05.3]} 49... dxc5 {[%clk
0:00:06.6]} 50. Kh1 {[%clk 0:00:05.7]} 50... Rd8 {[%clk 0:00:07.2]} 51. d6
{[%clk 0:00:05.5]} 51... b5 {[%clk 0:00:07.1]} 52. d7 {[%clk 0:00:05.9]} 52...
h6 {[%clk 0:00:07.8]} 53. Re3 {[%clk 0:00:06]} 53... Nc6 {[%clk 0:00:06.8]} 54.
Re8+ {[%clk 0:00:05.5]} 54... Kh7 {[%clk 0:00:07.7]} 55. Rxd8 {[%clk 0:00:05.6]}
55... Nxd8 {[%clk 0:00:08.6]} 56. Re1 {[%clk 0:00:06]} 56... c4 {[%clk 0:00:08]}
57. Re8 {[%clk 0:00:06.2]} 57... Nc6 {[%clk 0:00:08.8]} 58. Rc8 {[%clk 0:00:06]}
58... c3 {[%clk 0:00:05.3]} 59. Rxc6 {[%clk 0:00:05.7]} 59... c2 {[%clk
0:00:06.2]} 1-0

[Event "Early-Titled-Tuesday-Blitz-October-03-2023"]
[Site "Chess.com"]
[Date "2023.10.03"]
[Round "4"]
[White "NovoselovRoman"]
[Black "Elsa167"]
[Result "1-0"]
[WhiteElo "2610"]
[BlackElo "2898"]
[TimeControl "180+1"]
[EndTime "8:40:35 PDT"]
[Termination "NovoselovRoman won on time"]

1. e4 {[%clk 0:03:00.9]} 1... c5 {[%clk 0:02:59.3]} 2. Nc3 {[%clk 0:02:42.1]}
2... d6 {[%clk 0:02:58.6]} 3. g3 {[%clk 0:02:39.6]} 3... g6 {[%clk 0:02:55.4]}
4. Bg2 {[%clk 0:02:39.7]} 4... Bg7 {[%clk 0:02:55.9]} 5. d3 {[%clk 0:02:39.6]}
5... Nc6 {[%clk 0:02:56.3]} 6. Be3 {[%clk 0:02:38.9]} 6... Nd4 {[%clk
0:02:56.5]} 7. Nf3 {[%clk 0:02:35.3]} 7... Bg4 {[%clk 0:02:51.9]} 8. h3 {[%clk
0:02:34.3]} 8... Bxf3 {[%clk 0:02:51.9]} 9. Bxf3 {[%clk 0:02:35.2]} 9... e6
{[%clk 0:02:50.8]} 10. Bg2 {[%clk 0:02:30]} 10... Ne7 {[%clk 0:02:45.8]} 11. O-O
{[%clk 0:02:27.6]} 11... Rb8 {[%clk 0:02:44.9]} 12. a4 {[%clk 0:02:26.7]} 12...
O-O {[%clk 0:02:42.5]} 13. Qd2 {[%clk 0:02:25.1]} 13... a6 {[%clk 0:02:38.4]}
14. Rac1 {[%clk 0:02:10.1]} 14... b5 {[%clk 0:02:38.1]} 15. axb5 {[%clk
0:02:11]} 15... axb5 {[%clk 0:02:39]} 16. Bh6 {[%clk 0:02:10.4]} 16... b4 {[%clk
0:02:38.2]} 17. Bxg7 {[%clk 0:02:03.5]} 17... Kxg7 {[%clk 0:02:11.4]} 18. Nd1
{[%clk 0:01:55.5]} 18... e5 {[%clk 0:02:03.6]} 19. Ne3 {[%clk 0:01:54.9]} 19...
Ra8 {[%clk 0:01:50.9]} 20. Ra1 {[%clk 0:01:50.7]} 20... Qd7 {[%clk 0:01:41.8]}
21. Nc4 {[%clk 0:01:46.6]} 21... Qc7 {[%clk 0:01:13.6]} 22. f4 {[%clk 0:01:38]}
22... f6 {[%clk 0:01:12.2]} 23. fxe5 {[%clk 0:01:32.5]} 23... dxe5 {[%clk
0:01:04.7]} 24. Qf2 {[%clk 0:01:28.5]} 24... Rxa1 {[%clk 0:00:58.7]} 25. Rxa1
{[%clk 0:01:27.4]} 25... Nec6 {[%clk 0:00:56.2]} 26. Ra6 {[%clk 0:01:09.3]}
26... f5 {[%clk 0:00:54.9]} 27. exf5 {[%clk 0:01:01.5]} 27... Rxf5 {[%clk
0:00:54.5]} 28. Qe3 {[%clk 0:00:49.7]} 28... Nxc2 {[%clk 0:00:49.8]} 29. Qxc5
{[%clk 0:00:48]} 29... e4 {[%clk 0:00:34.8]} 30. Qxc6 {[%clk 0:00:41.1]} 30...
Qxg3 {[%clk 0:00:31.7]} 31. Qxe4 {[%clk 0:00:30.1]} 31... Ne1 {[%clk 0:00:29.2]}
32. Ra7+ {[%clk 0:00:25]} 32... Kh6 {[%clk 0:00:28.8]} 33. Qe3+ {[%clk
0:00:21.6]} 33... Rg5 {[%clk 0:00:19.2]} 34. Qxg3 {[%clk 0:00:15.1]} 34... Rxg3
{[%clk 0:00:20.1]} 35. Kf2 {[%clk 0:00:15.1]} 35... Rxg2+ {[%clk 0:00:20.4]} 36.
Kxe1 {[%clk 0:00:15.5]} 36... Rg3 {[%clk 0:00:21.3]} 37. Ke2 {[%clk 0:00:13.2]}
37... Rxh3 {[%clk 0:00:21.7]} 38. d4 {[%clk 0:00:13.5]} 38... Kg5 {[%clk
0:00:21.7]} 39. Ne3 {[%clk 0:00:12.9]} 39... Kf4 {[%clk 0:00:16.5]} 40. Nf1
{[%clk 0:00:06.3]} 40... Ke4 {[%clk 0:00:14.7]} 41. Rd7 {[%clk 0:00:06.1]} 41...
g5 {[%clk 0:00:10.9]} 42. Nd2+ {[%clk 0:00:05]} 42... Kf5 {[%clk 0:00:11.4]} 43.
d5 {[%clk 0:00:05.9]} 43... g4 {[%clk 0:00:10.4]} 44. Re7 {[%clk 0:00:05]} 44...
Rh6 {[%clk 0:00:08.2]} 45. Nc4 {[%clk 0:00:04.2]} 45... Rh2+ {[%clk 0:00:07.9]}
46. Ke3 {[%clk 0:00:04.3]} 46... g3 {[%clk 0:00:08.6]} 47. Kf3 {[%clk
0:00:04.1]} 47... Rc2 {[%clk 0:00:06.3]} 48. Ne3+ {[%clk 0:00:03]} 48... Kf6
{[%clk 0:00:06.4]} 49. Re6+ {[%clk 0:00:03.4]} 1-0

[Event "Early-Titled-Tuesday-Blitz-October-03-2023"]
[Site "Chess.com"]
[Date "2023.10.03"]
[Round "4"]
[White "i_like_explosions"]
[Black "Verony64"]
[Result "1-0"]
[WhiteElo "2394"]
[BlackElo "2234"]
[TimeControl "180+1"]
[EndTime "8:40:37 PDT"]
[Termination "i_like_explosions won on time"]

1. d4 {[%clk 0:03:00.9]} 1... d6 {[%clk 0:02:58.7]} 2. c4 {[%clk 0:03:00.8]}
2... c6 {[%clk 0:02:59.1]} 3. Nc3 {[%clk 0:03:00.9]} 3... Nd7 {[%clk 0:02:59.7]}
4. e4 {[%clk 0:03:00.9]} 4... e5 {[%clk 0:02:59.1]} 5. Nf3 {[%clk 0:03:01.5]}
5... Be7 {[%clk 0:02:57]} 6. Be2 {[%clk 0:03:02]} 6... Ngf6 {[%clk 0:02:56.8]}
7. Be3 {[%clk 0:03:02.2]} 7... O-O {[%clk 0:02:57.1]} 8. Qc2 {[%clk 0:03:02.1]}
8... Qc7 {[%clk 0:02:56.5]} 9. h3 {[%clk 0:03:02.3]} 9... Re8 {[%clk 0:02:54.9]}
10. O-O {[%clk 0:03:01.3]} 10... Bf8 {[%clk 0:02:55.5]} 11. b4 {[%clk
0:02:53.9]} 11... g6 {[%clk 0:02:53.5]} 12. a4 {[%clk 0:02:52.8]} 12... Bg7
{[%clk 0:02:51.4]} 13. Bd3 {[%clk 0:02:51.8]} 13... Nf8 {[%clk 0:02:41]} 14. Qb3
{[%clk 0:02:50.3]} 14... Nh5 {[%clk 0:02:40.3]} 15. d5 {[%clk 0:02:49.7]} 15...
Nf4 {[%clk 0:02:36.4]} 16. Rfd1 {[%clk 0:02:49.2]} 16... Qe7 {[%clk 0:02:35.9]}
17. Bf1 {[%clk 0:02:48.4]} 17... Qf6 {[%clk 0:02:31.1]} 18. Bxf4 {[%clk
0:02:43.8]} 18... exf4 {[%clk 0:02:30.1]} 19. Rac1 {[%clk 0:02:42.9]} 19... g5
{[%clk 0:02:30.3]} 20. c5 {[%clk 0:02:38.8]} 20... g4 {[%clk 0:02:24.2]} 21.
hxg4 {[%clk 0:02:35.1]} 21... Bxg4 {[%clk 0:02:24.3]} 22. Rd3 {[%clk 0:02:34.3]}
22... Ng6 {[%clk 0:02:24]} 23. dxc6 {[%clk 0:02:31.4]} 23... bxc6 {[%clk
0:02:18.3]} 24. Rxd6 {[%clk 0:02:27.3]} 24... Re6 {[%clk 0:02:18.3]} 25. Rcd1
{[%clk 0:02:20.5]} 25... Ne5 {[%clk 0:02:14]} 26. Be2 {[%clk 0:02:04.9]} 26...
Nxf3+ {[%clk 0:02:11.4]} 27. gxf3 {[%clk 0:02:05.8]} 27... Bh3 {[%clk
0:02:09.1]} 28. Bf1 {[%clk 0:02:03]} 28... Bxf1 {[%clk 0:02:04.1]} 29. Kxf1
{[%clk 0:02:03.1]} 29... Qxc3 {[%clk 0:02:01.7]} 30. Qxc3 {[%clk 0:02:03.2]}
30... Bxc3 {[%clk 0:02:01.3]} 31. b5 {[%clk 0:02:03.5]} 31... Rc8 {[%clk
0:01:56.3]} 32. Rxe6 {[%clk 0:01:53.9]} 32... fxe6 {[%clk 0:01:55.6]} 33. b6
{[%clk 0:01:54.6]} 33... axb6 {[%clk 0:01:51.2]} 34. cxb6 {[%clk 0:01:55.5]}
34... Rb8 {[%clk 0:01:51.7]} 35. Rb1 {[%clk 0:01:54]} 35... Rb7 {[%clk
0:01:49.6]} 36. Ke2 {[%clk 0:01:53.4]} 36... Ba5 {[%clk 0:01:50]} 37. Rd1 {[%clk
0:01:48.5]} 37... Kf7 {[%clk 0:01:41.9]} 38. Rh1 {[%clk 0:01:45.3]} 38... Kf6
{[%clk 0:01:34.1]} 39. Rh6+ {[%clk 0:01:45.3]} 39... Ke5 {[%clk 0:01:34.2]} 40.
Rh5+ {[%clk 0:01:45.5]} 40... Kd4 {[%clk 0:01:25.5]} 41. Rxa5 {[%clk 0:01:46.4]}
41... Rxb6 {[%clk 0:01:26.1]} 42. Ra8 {[%clk 0:01:46.8]} 42... Rb2+ {[%clk
0:01:25.8]} 43. Kf1 {[%clk 0:01:46.8]} 43... c5 {[%clk 0:01:23.3]} 44. a5 {[%clk
0:01:47.2]} 44... c4 {[%clk 0:01:22.2]} 45. a6 {[%clk 0:01:47.6]} 45... Kc3
{[%clk 0:01:22]} 46. a7 {[%clk 0:01:46.9]} 46... Ra2 {[%clk 0:01:22.7]} 47. Kg2
{[%clk 0:01:43.9]} 47... Kc2 {[%clk 0:01:19.2]} 48. Rc8 {[%clk 0:01:40.8]} 48...
Rxa7 {[%clk 0:01:16.6]} 49. Rxc4+ {[%clk 0:01:41.1]} 49... Kd3 {[%clk
0:01:16.4]} 50. Rc6 {[%clk 0:01:40.9]} 50... Re7 {[%clk 0:01:16.6]} 51. Kf1
{[%clk 0:01:36.7]} 51... Kd4 {[%clk 0:01:14.6]} 52. Ra6 {[%clk 0:01:34.2]} 52...
Ke5 {[%clk 0:01:11.3]} 53. Ra5+ {[%clk 0:01:34]} 53... Kf6 {[%clk 0:01:11.6]}
54. Kg2 {[%clk 0:01:33.4]} 54... Kg6 {[%clk 0:01:11.1]} 55. Kh2 {[%clk
0:01:32.6]} 55... e5 {[%clk 0:01:10.3]} 56. Ra6+ {[%clk 0:01:32.7]} 56... Kg5
{[%clk 0:01:09.5]} 57. Ra8 {[%clk 0:01:32.8]} 57... h6 {[%clk 0:01:05.2]} 58.
Rg8+ {[%clk 0:01:32]} 58... Kh5 {[%clk 0:01:03.1]} 59. Rf8 {[%clk 0:01:32.3]}
59... Kg5 {[%clk 0:01:01.5]} 60. Rf5+ {[%clk 0:01:31.7]} 60... Kg6 {[%clk
0:01:01.7]} 61. Kh3 {[%clk 0:01:32.3]} 61... Re6 {[%clk 0:01:00.6]} 62. Rf8
{[%clk 0:01:32]} 62... Kg5 {[%clk 0:00:59.6]} 63. Rg8+ {[%clk 0:01:31.5]} 63...
Kh5 {[%clk 0:00:57.6]} 64. Ra8 {[%clk 0:01:27.9]} 64... Re7 {[%clk 0:00:56.7]}
65. Ra6 {[%clk 0:01:27.3]} 65... Re8 {[%clk 0:00:54.7]} 66. Rf6 {[%clk
0:01:26.9]} 66... Re7 {[%clk 0:00:53.9]} 67. Rf5+ {[%clk 0:01:27.1]} 67... Kg6
{[%clk 0:00:53.4]} 68. Kg4 {[%clk 0:01:26.1]} 68... Re6 {[%clk 0:00:50.9]} 69.
Rf8 {[%clk 0:01:24.6]} 69... Re7 {[%clk 0:00:50.3]} 70. Rg8+ {[%clk 0:01:24.5]}
70... Kh7 {[%clk 0:00:48.5]} 71. Ra8 {[%clk 0:01:21.7]} 71... Kg6 {[%clk
0:00:48.2]} 72. Kh4 {[%clk 0:01:20.5]} 72... Re6 {[%clk 0:00:47.2]} 73. Ra5
{[%clk 0:01:19.7]} 73... Kg7 {[%clk 0:00:45.2]} 74. Kh5 {[%clk 0:01:19.3]} 74...
Kf7 {[%clk 0:00:33.1]} 75. Ra7+ {[%clk 0:01:17.9]} 75... Kg8 {[%clk 0:00:33.4]}
76. Rd7 {[%clk 0:01:16.6]} 76... Kh8 {[%clk 0:00:31.9]} 77. Kg4 {[%clk 0:01:07]}
77... Kg8 {[%clk 0:00:24.4]} 78. Kf5 {[%clk 0:01:06.7]} 78... Re8 {[%clk
0:00:13.4]} 79. Rd5 {[%clk 0:01:02.3]} 79... h5 {[%clk 0:00:11.2]} 80. Rxe5
{[%clk 0:00:53.5]} 80... Rf8+ {[%clk 0:00:01.9]} 81. Kg5 {[%clk 0:00:53.6]} 1-0